Cogmind - Beta 17 @@@ ROGUE MODE // 2026.07.14 @ 16:55:38 Player: TheSkyeDoctor Result: Destroyed by D-53 Grenadier with Mini Grenade Launcher Performance ------------- Evolutions (0) 0 Regions Visited (4) 800 Robots Destroyed (13) 65 Value Destroyed (196) 196 Prototype IDs (23) 460 Alien Tech Used (0) 0 Bonus (335) 335 TOTAL SCORE: 1856 Bonus ------- Follower Combat Kills 35 Aligned with FarCom 300 Cogmind --------- Core Integrity 0/250 Matter 276/300 Energy 160/160 System Corruption 0% Temperature Cool (0) Movement Treading (160) Location -9/Mines Parts ------- > --- POWER (1) -------- Light Nuclear Core > --- PROPULSION (2) --- Light Treads Light Treads > --- UTILITY (2) ------ Large Storage Unit Seismic Detector > --- WEAPON (2) ------- Light Cannon Grenade Launcher > --- INVENTORY (15) --- Light Nuclear Core Wheel Improved Heat Sink Medium Storage Unit Large Matter Pod (150) Structural Scanner Improved Terrain Scanner YOLO Cannon Light Assault Rifle Light Assault Rifle Hammer Peak State ------------ > --- POWER ------------ Light Nuclear Core > --- PROPULSION ------- Light Treads Light Treads > --- UTILITY ---------- Large Storage Unit Seismic Detector > --- WEAPON ----------- Light Assault Rifle Light Cannon > --- INVENTORY -------- Light Nuclear Core Wheel Improved Heat Sink Medium Storage Unit Structural Scanner Improved Terrain Scanner YOLO Cannon Light Assault Rifle Grenade Launcher Hammer [Rating: 12] Favorites ----------- Power Light Nuclear Core Engine Light Ion Engine Power Core Light Nuclear Core Propulsion Light Treads Treads Light Treads Utility Seismic Detector Device Seismic Detector Storage Large Storage Unit Weapon Light Assault Rifle Ballistic Gun Light Assault Rifle Ballistic Cannon Light Cannon Launcher Grenade Launcher Build | -11 -10 -10 -10 -9 ------- Run | Yrd Mat Min Exi Min Slots Evolved . | . . . . . Power . | . . . . . Propulsion . | . . . . . Utility . | . . . . . Weapon . | . . . . . Parts Attached 12 | 8 2 1 . 1 Power 2 | 1 . 1 . . Engine 1 | 1 . . . . Core 1 | . . 1 . . Reactor . | . . . . . Propulsion 2 | 2 . . . . Treads 2 | 2 . . . . Leg . | . . . . . Wheel . | . . . . . Hover . | . . . . . Flight . | . . . . . Utility 4 | 3 1 . . . Device 2 | 2 . . . . Storage 2 | 1 1 . . . Processor . | . . . . . Hackware . | . . . . . Protection . | . . . . . Artifact . | . . . . . Weapon 4 | 2 1 . . 1 Energy Gun . | . . . . . Energy Cannon . | . . . . . Ballistic Gun 2 | 2 . . . . Ballistic Cannon 1 | . 1 . . . Launcher 1 | . . . . 1 Special Weapon . | . . . . . Impact Weapon . | . . . . . Slashing Weapon . | . . . . . Piercing Weapon . | . . . . . Special Melee Weapon . | . . . . . Unidentified Prototypes . | . . . . . Parts Lost 1 | . . 1 . . Power 1 | . . 1 . . Propulsion . | . . . . . Utility . | . . . . . Weapon . | . . . . . Highest Loss Streak 1 | . . 1 . . To Critical Strikes . | . . . . . Average Backups 7 | 1 5 8 9 11 Power . | . 1 1 1 1 Propulsion . | . 1 1 1 1 Utility 3 | . 1 3 4 5 Weapon 2 | . 1 2 3 4 Tool/Special . | . . . . . Unused Backups 9 | . . 1 . 8 Power 2 | . . 1 . 1 Propulsion 1 | . . . . 1 Utility 4 | . . . . 4 Weapon 2 | . . . . 2 Tool/Special . | . . . . . Average Slot Usage (%) 99 | . 100 99 100 100 Engine 5 | . 14 2 . . Core 8 | . . 11 14 14 Treads 28 | . 28 28 28 28 Device 14 | . 14 14 14 14 Storage 14 | . 14 14 14 14 Ballistic Gun 14 | . 15 14 14 7 Ballistic Cannon 13 | . 12 14 14 14 Peak Build Rating 12 | 9 8 10 12 12 Average Rating 8 | 5 7 9 10 12 On Entrance 7 | . 7 7 10 12 Avg Prop Armor Cover (%) . | . . . . . Naked Turns . | . . . . . Heaviest Build 32 | 11 28 30 30 32 Greatest Support 40 | 40 40 40 40 40 Greatest Overweight (x) . | . . . . . Average Overweight (x) . | . . . . . Largest Inventory Capacity 15 | 8 15 15 15 15 Average Capacity 12 | 7 9 15 15 15 Most Carried 12 | 3 8 9 12 12 Average Carried 7 | 2 5 8 10 12 Final Capacity 15 | 8 15 15 15 15 Final Carried 12 | 3 7 9 12 12 Class Distribution -------------------- 100% | Mutant Dominant Class ---------------- Mutant | -10/Materials Mutant | -10/Mines Mutant | -10/Exiles Mutant | -9/Mines Resources | -11 -10 -10 -10 -9 ----------- Run | Yrd Mat Min Exi Min Matter Collected 498 | 292 54 152 . . Remotely . | . . . . . Salvage Created 300 | 146 42 112 . . Parts 25 | 8 6 11 . . Haulers Intercepted . | . . . . . Recyclers Shooed . | . . . . . Parts Field Recycled . | . . . . . Retrieved Matter . | . . . . . Parts Self-Destructed . | . . . . . Prevented . | . . . . . Parts Restored . | . . . . . Kills | -11 -10 -10 -10 -9 ------- Run | Yrd Mat Min Exi Min Combat Hostiles Destroyed 9 | . 4 5 . . Guns 3 | . . 3 . . Cannons 6 | . 4 2 . . Classes Destroyed 5 | 2 2 1 . . Worker 1 | . . 1 . . Tunneler 2 | 2 . . . . Recycler 1 | 1 . . . . Swarmer 6 | . 3 3 . . Grunt 3 | . 1 2 . . Best Kill Streak 4 | 2 3 4 . . Combat Bots Only 3 | . 3 3 . . Max Kills in Single Turn 1 | 1 1 1 . . Gunslinging . | . . . . . Exploded . | . . . . . Melee . | . . . . . Uniques/NPCs Destroyed . | . . . . . Combat | -11 -10 -10 -10 -9 -------- Run | Yrd Mat Min Exi Min Hostile Shots Fired 57 | . 33 18 . 6 Missed 17 | . 11 6 . . Hits 40 | . 22 12 . 6 Projectile 40 | . 22 12 . 6 AOE 6 | . . . . 6 Critical Strikes 1 | . 1 . . . Damage Taken 582 | . 199 148 . 235 Core 272 | . 77 35 . 160 Absorbed by Shields . | . . . . . Core Remaining (%) 100 | 100 . . . . Volleys Fired 44 | 6 21 16 . 1 Largest 2 | 2 2 2 . 2 Hottest 60 | 40 50 50 . 60 Shots Fired 88 | 12 42 32 . 2 Gun 49 | 12 21 16 . . Cannon 38 | . 21 16 . 1 Launcher 1 | . . . . 1 Special . | . . . . . Kinetic 87 | 12 42 32 . 1 Thermal . | . . . . . Explosive 1 | . . . . 1 Electromagnetic . | . . . . . Robot Hit Streak 7 | 7 5 7 . 1 Robot Miss Streak 4 | 1 4 2 . 1 Penetration Max . | . . . . . Secondary Targets . | . . . . . Shots Hit Robots 47 | 9 18 19 . 1 Core Hits 20 | 6 6 8 . . Critical Kills . | . . . . . Critical Parts Destroyed . | . . . . . Critical Strikes 1 | . 1 . . . Blast 1 | . 1 . . . Melee Attacks . | . . . . . Impact . | . . . . . Slashing . | . . . . . Piercing . | . . . . . Sneak Attacks . | . . . . . Combat Hostiles . | . . . . . Follow-up Attacks . | . . . . . Damage Inflicted 572 | 65 256 234 . 17 Guns 211 | 65 64 82 . . Cannons 344 | . 192 152 . . Explosions 17 | . . . . 17 Melee . | . . . . . Ramming . | . . . . . Kinetic 555 | 65 256 234 . . Thermal . | . . . . . Explosive 17 | . . . . 17 Electromagnetic . | . . . . . Impact . | . . . . . Slashing . | . . . . . Piercing . | . . . . . Highest Corruption . | . . . . . Average Corruption . | . . . . . Corruption Purged . | . . . . . Corruption Blocked . | . . . . . Overload Shots . | . . . . . Overflow Damage . | . . . . . Projectiles . | . . . . . Explosions . | . . . . . Melee . | . . . . . Knockbacks 5 | . 4 1 . . Impact . | . . . . . Kinetic 5 | . 4 1 . . Secondary . | . . . . . Self-Inflicted Damage . | . . . . . Shots . | . . . . . Rammed 1 | . 1 . . . Targets Rammed 1 | . 1 . . . Kicked . | . . . . . Crushed . | . . . . . Highest Temperature 32 | . 32 27 . 6 Average Temperature 11 | . 10 12 . 4 Received Heat Transfer 153 | . 69 84 . . Siege Activations . | . . . . . Martial Activations . | . . . . . Shielding Activations . | . . . . . Robots Disrupted . | . . . . . Combat Hostiles . | . . . . . Robots Corrupted . | . . . . . Combat Hostiles . | . . . . . Parts Fried . | . . . . . Impact Corruptions . | . . . . . Robots Melted . | . . . . . Combat Hostiles . | . . . . . Parts Melted . | . . . . . Heat Transferred . | . . . . . Parts Sabotaged . | . . . . . Parts Stolen . | . . . . . Parts Stripped . | . . . . . Power Chain Reactions . | . . . . . Alert | -11 -10 -10 -10 -9 ------- Run | Yrd Mat Min Exi Min Maximum Alert Level . | . . . . . Low Security (%) 100 | 100 100 100 . 100 Level 1 . | . . . . . Level 2 . | . . . . . Level 3 . | . . . . . Level 4 . | . . . . . Level 5 . | . . . . . High Security . | . . . . . Max Security . | . . . . . Peak Influence 76 | 10 50 76 . 2 Initial 4 | . . 4 . . Average 10 | . 8 14 . . Influence Increases 285 | 15 97 171 . 2 Destroy 0b10 Robot/C 200 | . 80 120 . . Destroy 0b10 Robot/NC 20 | 15 . 5 . . Destroy Leader 40 | . 10 30 . . Allied During Kill 16 | . . 16 . . Successful Hack 7 | . 7 . . . Destroy Structure 2 | . . . . 2 Influence Decreases 283 | 15 85 183 . . Entered New Map 8 | . . 8 . . Time Decay 265 | 15 85 165 . . Lost Part 10 | . . 10 . . Squads Dispatched . | . . . . . Investigation . | . . . . . Extermination . | . . . . . Reinforcement . | . . . . . Assault . | . . . . . Garrison . | . . . . . Intercept . | . . . . . Searches Triggered . | . . . . . Construction Impeded . | . . . . . Haulers Reinforced . | . . . . . Active Scanning Responses . | . . . . . Cargo Convoy Interrupts . | . . . . . Stealth | -11 -10 -10 -10 -9 --------- Run | Yrd Mat Min Exi Min Distress Signals 1 | . 1 . . . Communications Jammed . | . . . . . Distress Signals . | . . . . . Times Spotted 23 | . 11 5 . 7 Peak Tracking Total 5 | . 5 2 . 4 Tactical Retreats . | . . . . . Traps | -11 -10 -10 -10 -9 ------- Run | Yrd Mat Min Exi Min Traps Triggered . | . . . . . Indirectly . | . . . . . Trap Hack Attempts . | . . . . . Triggered . | . . . . . Disarmed . | . . . . . Reprogrammed . | . . . . . Reused . | . . . . . Traps Extracted . | . . . . . Installed . | . . . . . Triggered . | . . . . . Machines | -11 -10 -10 -10 -9 ---------- Run | Yrd Mat Min Exi Min Machines Disabled 1 | . 1 . . . Max in Single Turn 1 | . 1 . . . Machines Repaired . | . . . . . Machines Dismantled . | . . . . . Machines Sabotaged . | . . . . . Overloaded Fab Kills . | . . . . . Hacking | -11 -10 -10 -10 -9 --------- Run | Yrd Mat Min Exi Min Machines Accessed 4 | . 3 . 1 . Terminals 3 | . 3 . . . Fabricators . | . . . . . Repair Stations . | . . . . . Recycling Units . | . . . . . Scanalyzers . | . . . . . Garrison Access . | . . . . . Total Hacks 9 | . 8 . 1 . Successful 5 | . 4 . 1 . Failed 4 | . 4 . . . Catastrophic . | . . . . . Database Lockouts . | . . . . . Manual 3 | . 2 . 1 . Terminals 8 | . 8 . . . Fabricators . | . . . . . Repair Stations . | . . . . . Recycling Units . | . . . . . Scanalyzers . | . . . . . Garrison Access . | . . . . . Terminal Hacks 4 | . 3 . 1 . Branch Access Points 1 | . 1 . . . Emergency Access Points 1 | . 1 . . . Locate Traps 1 | . 1 . . . Proto ID Catalog 1 | . . . 1 . Fabricator Hacks . | . . . . . Repair Station Hacks . | . . . . . Recycling Unit Hacks . | . . . . . Scanalyzer . | . . . . . Garrison Access Hacks . | . . . . . Unauthorized Hacks 1 | . 1 . . . Terminals 1 | . 1 . . . Operators 1 | . 1 . . . Fabricators . | . . . . . Repair Stations . | . . . . . Recycling Units . | . . . . . Scanalyzers . | . . . . . Garrison Access . | . . . . . Data Cores Recovered . | . . . . . Used . | . . . . . Hacking Detections 3 | . 3 . . . Full Trace Events . | . . . . . Feedback Events . | . . . . . Feedback Blocked . | . . . . . Robot Schematics Acquired . | . . . . . Robots Built . | . . . . . Authchips . | . . . . . Time . | . . . . . Total Robot Build Rating . | . . . . . Part Schematics Acquired . | . . . . . Parts Built . | . . . . . Authchips . | . . . . . Time . | . . . . . Total Part Build Rating . | . . . . . Part Studies Acquired . | . . . . . Parts Repaired . | . . . . . Time . | . . . . . Parts Recycled . | . . . . . Recycled Matter . | . . . . . Retrieved Matter . | . . . . . Retrieved Components . | . . . . . Parts Scanalyzed . | . . . . . Part Schematics Acquired . | . . . . . Parts Damaged . | . . . . . Bothacking | -11 -10 -10 -10 -9 ------------ Run | Yrd Mat Min Exi Min Used RIF Installer . | . . . . . Robots Hacked . | . . . . . Non-combat . | . . . . . Combat . | . . . . . Robot Hacks Applied . | . . . . . Relay Couplers Released . | . . . . . Fabnet Peak Effective % . | . . . . . Robots Rewired . | . . . . . Allies Hacked . | . . . . . Hacks Repelled . | . . . . . Allies | -11 -10 -10 -10 -9 -------- Run | Yrd Mat Min Exi Min Total Allies 3 | . . 3 . . Largest Group 3 | . . 3 3 3 Highest-Rated Group 40 | . . 40 40 40 Highest-Rated Ally 16 | . . 16 16 16 Total Orders . | . . . . . Ally Attacks 22 | . . 4 . 18 Total Damage 184 | . . 54 . 130 Kills 5 | . . 1 . 4 Allies Corrupted . | . . . . . Allies Melted . | . . . . . Intel | -11 -10 -10 -10 -9 ------- Run | Yrd Mat Min Exi Min Active Infowar (turns) 1578 | 29 457 675 387 30 Terrain 1 | 1 . . . . Seismic 1577 | 28 457 675 387 30 Robot Analysis Total . | . . . . . Derelict Logs Recovered . | . . . . . Drone Launches . | . . . . . Drone Recoveries . | . . . . . Exploration | -11 -10 -10 -10 -9 ------------- Run | Yrd Mat Min Exi Min Turns Passed 1667 | 118 457 675 387 30 Spaces Moved 935 | 58 243 378 240 16 Core 3 | 3 . . . . Treads 932 | 55 243 378 240 16 Legs . | . . . . . Wheels . | . . . . . Hover . | . . . . . Flight . | . . . . . Fastest Speed 50 | 50 160 160 160 160 Average Speed 159 | 154 160 160 160 160 Slowest Speed 160 | 160 160 160 160 160 Overloaded Moves . | . . . . . Propulsion Burnouts . | . . . . . Robots Hopped . | . . . . . Potential Cave-ins . | . . . . . Cave-ins Triggered . | . . . . . Exploration Rate (%) 38 | 4 47 69 61 11 Regions Visited 4 Branch Regions 3 Pre-discovered Areas . | . . . . . Known Exits Taken 1 | . 1 . . . Unknown Exits Taken 3 | 1 . 1 1 . Scrap Searched 1 | . . 1 . . Spaces Dug . | . . . . . Terrain Destroyed 4 | . . . . 4 Melee . | . . . . . Projectile . | . . . . . AOE 4 | . . . . 4 Terrain Rammed . | . . . . . Walls Destroyed . | . . . . . Machines Disabled . | . . . . . Actions | -11 -10 -10 -10 -9 --------- Run | Yrd Mat Min Exi Min Total 1027 | 74 272 420 243 18 Wait 25 | . 1 22 2 . Move 932 | 57 243 377 239 16 Hop . | . . . . . Pick Up 11 | 2 4 3 2 . Fast Attach 9 | 8 . 1 . . Attach . | . . . . . Detach 1 | 1 . . . . Swap 3 | . 2 . . 1 Drop 2 | . 1 1 . . Fire 44 | 6 21 16 . 1 Melee . | . . . . . Ram . | . . . . . Kick . | . . . . . Crush . | . . . . . Escape Stasis . | . . . . . Rewire . | . . . . . Trap . | . . . . . Miscellaneous . | . . . . . Route ------- -11/Scrapyard -10/Materials -10/Mines (discovered 3 exits: [*Mat x2] / *Exi) -10/Exiles -9/Mines History --------- Turn | Location | Event 14 | -11/Scrapyard | Discovered new exit (range 15) 119 | -11/Scrapyard | Entered Materials 302 | -10/Materials | Build established: Mutant 439 | -10/Materials | Identified exit to Mines 576 | -10/Materials | Entered Mines 787 | -10/Mines | Assisted by bots powering up and referring to "LRC-V3" 970 | -10/Mines | Discovered new exit (range 12) 1100 | -10/Mines | Discovered new exit (range 7) 1236 | -10/Mines | Deemed a non-threat by the Exiles lab entrance 1236 | -10/Mines | Discovered new exit (range 5) 1251 | -10/Mines | Entered Exiles 1251 | -10/Exiles | Accompanied by 3 allies 1290 | -10/Exiles | Met 8R-AWN 1317 | -10/Exiles | Met EX-HEX 1371 | -10/Exiles | Met EX-BIN 1392 | -10/Exiles | Aligned with FarCom system 1394 | -10/Exiles | Given EX-Vault access code 1434 | -10/Exiles | Opened EX-Vault 1450 | -10/Exiles | Found YOLO Cannon 1483 | -10/Exiles | Warned to stay clear of 0b10 Research branches 1500 | -10/Exiles | Exiles lab attacked by MAIN.C 1623 | -10/Exiles | Discovered new exit (range 10) 1638 | -10/Exiles | Left Exiles lab with YOLO Cannon 1638 | -10/Exiles | Entered Mines 1638 | -9/Mines | Accompanied by 3 allies 1639 | -9/Mines | Assembled infested the area 1644 | -9/Mines | Assisted by a Guerilla fighting off Assembled 1660 | -9/Mines | Met a Derelict bent on vengeance 1664 | -9/Mines | Core integrity fell below 50% 1667 | -9/Mines | Core integrity fell below 20% 1668 | -9/Mines | Destroyed by D-53 Grenadier with Mini Grenade Launcher Last Messages --------------- GOAL=ESCAPE 01638_ Receiving FarCom transmissions... 01639_ ALERT: Infestation in the mines, dispatching Demolisher response squad. 01640_ GM-J5T: "That was close. Too bad in all the rush we got split up from the others." 01644_ A derelict emerges from the shadows: "You need to get out of here! I've been tracking a group of Assembled to figure out where they're coming from, and they're closing on this area, come on!" 01654_ Trooper 1b knocked back. 01655_ GM-J5T: "Oh no, it's like what happened to the Exiles when they were wandering homeless, only there's no Warlord to save us!" 01661_ DC-A0X(h): "I'll hold them off! Go on ahead or try to find another way!" 01661_ D-53 Grenadier unfolds itself. 01661_ DC-A0X(h) destroyed. 01665_ T-07 Excavator destroyed. Map ----- +----------------------------------------------------+ | ?????????????????????????????????????????????????? | | ?????????????????????????????????????????????????? | | ?????????????????????????????????????????????????? | | ?????????????????????????????????????????????????? | | ?????????????????????????????????????????????????? | | ?????????????????????????????????????????????????? | | ?????????????????????????????????????????????????? | | ?????????????????????????????????????????????????? | | ?????????????????????????????????????????????????? | | ?????????????????????????????????????????????????? | | ?????????????????????????????????????????????????? | | ?????????????????????????????????????????????????? | | ?????????????????????????????????????????????????? | | ?????????????????????????????????????????????????? | | ?????????????????????????????????????????????????? | | ?????????????????????????####????????????????????? | | ????????????? ??????????## ##??####?????????????? | | ????????????? ????##### #### ##????????????? | | ?????????????? ??## ## #????????????? | | ?????????????? ## ?# g #????????????? | | ????????????? ### a[ #????????????? | | ????????????? z %! #######??????? | | ????????????????# #??????? | | ????????????????????## #### #??????? | | ?????????????????????# #?#### ### #??????? | | ?????????????????????# @ #????? #??????????? | | ?????????????????????# #????? #??????????? | | ????????????????????# #??????#??????????? | | ????????????????????## #?????????????????? | | ?????????????????????## ##?????????????????? | | ?????????????????????# ##??????????????????? | | ????????????????????# ##???????????????????? | | ????????????????????## ]d= #????????????????????? | | ?????????????????????# d ????????????????????? | | ????????????????????? % ????????????????????? | | ???????????????????? ????????????????????? | | ???????????????????? ####???????????????????? | | ???????????????????# #???????????????????????? | | ???????????????????## ##????????????????????????? | | ????????????????????# #??????????????????????????? | | ???????????????????? ???????????????????????????? | | ?????????????????????????????????????????????????? | | ?????????????????????????????????????????????????? | | ?????????????????????????????????????????????????? | | ?????????????????????????????????????????????????? | | ?????????????????????????????????????????????????? | | ?????????????????????????????????????????????????? | | ?????????????????????????????????????????????????? | | ?????????????????????????????????????????????????? | | ?????????????????????????????????????????????????? | +----------------------------------------------------+ Best States ------------- Heat Dissipation 25 Energy Generation 14 Energy Capacity 160 Matter Stores 300 Matter Capacity 300 Sight Range 16 Terrain Scan Density 10 Evasion (%) 40 Recoil Reduction 2 Item Schematics ----------------- None Robot Schematics ------------------ None Fabricated ------------ Nothing Repaired ---------- Nothing Studied --------- None Alien Tech Used ----------------- None Achievements -------------- None Challenges ------------ None Game ------ Seed InertialShadeVibroblade Manual? 0 Play Time 00:08:23 Cumulative 122.6 hours Start 2026.07.14 @ 16:47:50 End 2026.07.14 @ 16:55:38 Sessions 1 Manual Loads 0 Difficulty Rogue Special Mode None Game No. 260 Rogue 260 Adventurer 0 Explorer 0 Win Type - Total 0 Types 0/0/0/0/0/0/0/0/0/0 Lore% 53 Gallery% 52 Achievement% 41 Wizard Run 0 Options --------- Layout 2 ASCII 0 Keyboard 1 Movement Arrows Keybinds 0 Fullscreen 1 Font 24/Smallcaps Map View 50x44 Zoom Use 0% Tactical HUD 1 Map Filters NONE Filters NONE Steam 1 RUN: 128e960a-353c-4c90-b55a-cf938fa0a923